bitfinex-derivatives/quotes_ETHF0:USTF0_20250502
["timestamp","ask_amount","ask_price","bid_price","bid_amount"]
[1746226321919,9.71280086,1835.7,1835.6,1.08903]
[1746226322120,14.28340086,1835.7,1835.6,1.08903]
[1746226323918,1.08907,1835.6,1835.5,4.45688]
[1746226324220,6.51977,1835.6,1835.5,4.45688]
[1746226325326,3.696,1835.6,1835.5,4.45688]
[1746226326021,4.78507,1835.6,1835.5,4.45688]
[1746226326221,1.08913,1835.5,1835.4,8.33784928]
[1746226326530,12.84216086,1835.5,1835.4,8.33784928]
[1746226327224,13.80023086,1835.5,1835.4,8.33784928]
[1746226327428,3.696,1835.5,1835.4,9.95574928]
[1746226328126,1.08913,1835.5,1835.4,8.86660928]
[1746226328323,9.63436086,1835.5,1835.4,9.95579928]
[1746226328519,9.63436086,1835.5,1835.4,2.70709]
[1746226329132,8.54523086,1835.5,1835.4,2.70709]
[1746226329322,4.0159,1835.7,1835.6,1.08907]
[1746226329527,6.89643086,1835.7,1835.5,3.2618]
[1746226329726,6.89643086,1835.7,1835.6,2.69357]
[1746226331331,6.81823988,1835.9,1835.8,1.08895]
[1746226331536,3.61043988,1835.9,1835.8,1.08895]
[1746226332033,3.61043988,1836.0,1835.9,1.08889]
[1746226332334,3.61043988,1836.0,1835.9,7.01759]
[1746226334438,3.61043988,1836.0,1835.9,12.01759]
[1746226334833,3.61043988,1836.0,1835.9,12.44551059]
[1746226335131,3.61043988,1836.0,1835.9,16.14151059]
[1746226336040,3.61043988,1836.0,1835.9,15.71359]
[1746226336437,1.08862,1836.4,1836.3,1.08865]
[1746226336631,7.98505086,1836.4,1836.3,1.08865]
[1746226336832,8.49053086,1836.4,1836.3,1.08865]
[1746226337238,8.49053086,1836.4,1836.3,2.69345]
[1746226338338,12.18653086,1836.4,1836.3,2.69345]
[1746226338538,12.18653086,1836.4,1836.3,1.08865]
[1746226338741,13.02163086,1836.4,1836.3,1.08865]
[1746226339140,12.18653086,1836.4,1836.3,2.72815]
[1746226339440,12.18653086,1836.4,1836.3,3.55535]
[1746226341641,10.59243086,1836.4,1836.3,3.55535]
[1746226342146,6.89643086,1836.4,1836.3,3.55535]
[1746226343247,10.59243086,1836.4,1836.3,3.55535]
[1746226346150,6.89643086,1836.4,1836.3,3.55535]
[1746226347154,10.59243086,1836.4,1836.3,3.55535]
[1746226350150,6.89643086,1836.4,1836.3,3.55535]
[1746226350853,8.60203086,1836.4,1836.3,3.55535]
[1746226351058,11.80983086,1836.4,1836.0,6.17105]
[1746226351252,1.08889,1835.9,1835.8,7.24870928]
[1746226351556,1.08901,1835.7,1835.6,13.08942009]
[1746226351854,13.56581,1835.7,1835.6,6.12140009]
[1746226352062,18.56581,1835.7,1835.6,3.56636009]
[1746226352250,22.71045988,1835.7,1835.6,3.56636009]
[1746226353563,22.69045988,1835.7,1835.6,3.56636009]
[1746226354964,24.33255988,1835.7,1835.6,3.56636009]
[1746226356565,1.08919,1835.4,1835.3,1.08924]
[1746226356763,4.29699,1835.4,1835.3,1.08924]
[1746226357060,4.72563988,1835.4,1835.3,1.08924]
[1746226357458,4.72563988,1835.4,1835.2,1.7534]
[1746226357459,4.72563988,1835.4,1835.2,2.84267]
[1746226357760,3.63644988,1835.4,1835.3,1.08924]
[1746226357965,0.42864988,1835.4,1835.3,1.08924]
[1746226358464,0.42864988,1835.4,1835.3,1.89304]
[1746226359062,0.42864988,1835.4,1835.3,5.58904]
[1746226360270,0.42864988,1835.4,1835.3,1.89304]
[1746226366873,1.08907,1835.6,1835.5,1.08913]
[1746226367069,1.51706768,1835.6,1835.5,1.08913]
[1746226370587,0.42799768,1835.6,1835.5,1.08913]
[1746226370776,0.42799768,1835.6,1835.5,1.92443]
[1746226371380,4.12399768,1835.6,1835.5,1.92443]
[1746226373980,1.08877,1836.2,1836.1,1.08877]
[1746226374378,4.29649,1836.3,1836.2,1.08871]
[1746226375083,1.08871,1836.2,1836.1,2.74483]
[1746226376183,4.78471,1836.2,1836.1,2.74483]
[1746226376588,3.696,1836.2,1836.1,2.74483]
[1746226377087,4.78471,1836.2,1836.1,2.74483]
[1746226385082,3.696,1836.2,1835.9,2.72219]
[1746226385284,4.29671,1836.0,1835.3,3.2078]
[1746226385484,3.2078,1835.6,1835.3,5.1337]
[1746226385690,4.29692,1835.6,1835.5,1.08913]
[1746226386090,4.72254404,1835.6,1835.5,1.08913]
[1746226386287,3.63342404,1835.6,1835.5,1.08913]
[1746226386495,5.82,1836.0,1835.9,1.08889]
[1746226386793,1.08885,1836.0,1835.9,1.08889]
[1746226387194,4.78485,1836.0,1835.9,1.08889]
[1746226387398,4.78485,1836.0,1835.9,2.66909]
[1746226387596,3.696,1836.0,1835.9,2.66909]
[1746226388092,4.29658,1836.1,1836.0,1.08883]
[1746226388290,4.29658,1836.1,1836.0,2.66903]
[1746226389196,7.99258,1836.1,1836.0,2.66903]
[1746226391097,7.99258,1836.1,1836.0,1.5802]
[1746226391298,7.99258,1836.1,1836.0,2.66903]
[1746226392492,1.08893,1835.9,1835.8,1.08892]
[1746226392699,4.29673,1835.9,1835.8,1.08895]
[1746226393197,7.99273,1835.9,1835.8,1.08895]
[1746226394293,4.78493,1835.9,1835.8,1.08895]
[1746226394896,3.696,1835.9,1835.8,1.08895]
[1746226395196,3.2078,1836.3,1836.0,3.81084]
[1746226395402,4.29648,1836.3,1836.2,1.08871]
[1746226395605,3.61043988,1836.5,1836.4,1.08859]
[1746226395901,4.69896988,1836.5,1836.4,4.54359]
[1746226396102,1.08859,1836.4,1836.3,2.8053]
[1746226397201,4.78459,1836.4,1836.3,2.8053]
[1746226397404,3.696,1836.4,1836.3,2.8053]
[1746226397700,8.39502988,1836.4,1836.3,2.8053]
[1746226399510,7.30643988,1836.4,1836.3,2.8053]
[1746226401003,3.696,1836.4,1836.3,2.8053]
[1746226401308,4.78455,1836.5,1836.4,1.08859]
[1746226401507,4.78455,1836.5,1836.4,2.80849]
[1746226401806,3.696,1836.5,1836.4,2.80849]
[1746226402406,4.78453,1836.5,1836.4,2.80849]
[1746226406008,1.08859,1836.4,1836.3,1.08862]
[1746226406308,1.08877,1836.1,1836.0,1.08878]
[1746226406509,1.08876,1836.2,1836.1,1.08874]
[1746226406708,2.70376,1836.2,1836.1,1.08874]
[1746226407103,6.39976,1836.2,1836.1,1.08874]
[1746226409713,1.08877,1836.1,1836.0,1.5822]
[1746226410015,2.68327,1836.1,1836.0,1.5822]
[1746226410212,6.37927,1836.1,1836.0,1.5822]
[1746226415414,1.08889,1835.9,1835.8,0.8707]
[1746226415717,1.08889,1835.9,1835.8,1.5901]
[1746226416112,5.62519,1835.9,1835.8,1.5901]
[1746226416611,5.62519,1835.9,1835.8,2.67905]
[1746226416813,4.78489,1835.9,1835.8,2.67905]
[1746226417310,3.696,1835.9,1835.8,2.67905]
[1746226417917,3.696,1835.9,1835.8,11.16505]
[1746226418215,1.08878,1836.1,1836.0,1.08883]
[1746226418619,1.08878,1836.1,1836.0,3.51663]
[1746226419212,4.78478,1836.1,1836.0,3.51663]
[1746226422117,1.08878,1836.1,1836.0,3.51663]
[1746226423116,4.78478,1836.1,1836.0,3.51663]
[1746226428122,1.08878,1836.1,1836.0,3.51663]
[1746226429215,4.78478,1836.1,1836.0,3.51663]
[1746226431120,1.08889,1835.9,1835.8,3.2078]
[1746226431318,1.08901,1835.8,1835.7,2.67978]
[1746226432124,4.78501,1835.8,1835.7,2.67978]
[1746226434417,4.78501,1835.8,1835.7,1.5908]
[1746226434929,4.78501,1835.8,1835.7,2.67981]
[1746226436534,4.78501,1835.8,1835.7,1.5908]
[1746226436734,6.41101,1835.8,1835.7,2.67981]
[1746226438634,4.78501,1835.8,1835.7,2.67981]
[1746226440424,3.696,1835.8,1835.5,2.76868]
[1746226440632,2.76241,1835.7,1835.6,1.7137]
[1746226441933,1.08901,1835.7,1835.6,2.80277]
[1746226442137,3.696,1835.7,1835.6,2.80277]
[1746226443340,4.2968,1835.8,1835.7,1.08901]
[1746226443530,4.2968,1835.8,1835.7,2.83931]
[1746226444642,1.089,1835.8,1835.7,2.83931]
[1746226445139,4.785,1835.8,1835.7,2.83931]
[1746226445339,3.696,1835.8,1835.7,2.83931]
[1746226445638,3.696,1835.8,1835.7,6.04711]
[1746226446133,1.0889,1835.9,1835.8,1.08895]
[1746226446333,1.0889,1835.9,1835.8,3.59625]
[1746226447133,4.7849,1835.9,1835.8,3.59625]
[1746226449426,3.696,1835.9,1835.8,3.59625]
[1746226450539,4.78489,1835.9,1835.8,3.59625]
[1746226451039,3.696,1835.9,1835.8,3.59625]
[1746226452136,3.61043988,1836.2,1836.1,1.08877]
[1746226452435,3.61043988,1836.2,1836.1,4.29657]
[1746226452741,3.61043988,1836.2,1836.1,7.77857]
[1746226453231,3.61043988,1836.2,1836.1,8.61887]
[1746226453637,3.61043988,1836.2,1836.1,5.13687]
[1746226453836,3.61043988,1836.2,1836.1,8.61887]
[1746226454039,3.61043988,1836.2,1836.1,13.61887]
[1746226455341,3.61043988,1836.2,1836.1,8.61887]
[1746226457342,1.08855,1836.5,1836.4,1.08859]
[1746226458142,4.78455,1836.5,1836.4,3.63259]
[1746226463045,4.78455,1836.5,1836.4,2.80019]
[1746226465448,3.696,1836.5,1836.4,2.80019]
[1746226465744,4.78453,1836.5,1836.4,2.80019]
[1746226466945,1.08871,1836.2,1836.1,4.29654]
[1746226467142,4.78471,1836.2,1836.1,5.96734]
[1746226467739,6.40841,1836.2,1836.1,2.75954]
[1746226470851,6.40841,1836.2,1836.1,1.6708]
[1746226471346,6.40841,1836.2,1836.1,2.75957]
[1746226473750,1.08877,1836.1,1836.0,1.0888]
[1746226473943,1.08883,1836.0,1835.9,0.8713]
[1746226474145,5.61693,1836.0,1835.9,1.6692]
[1746226474346,1.08889,1835.9,1835.8,4.29672]
[1746226474547,2.70359,1835.9,1835.8,4.29672]
[1746226475151,6.39959,1835.9,1835.8,4.29672]
[1746226476546,6.39959,1835.9,1835.8,1.08892]
[1746226478649,1.08895,1835.8,1835.7,2.75816]
[1746226479153,4.78495,1835.8,1835.7,2.75816]
[1746226481254,3.696,1835.8,1835.7,2.75816]
[1746226482356,3.696,1835.8,1835.7,7.75816]
[1746226483161,1.08877,1836.2,1836.1,1.08871]
[1746226483752,1.08877,1836.2,1836.1,3.64351]
[1746226484157,4.78477,1836.2,1836.1,3.64351]
[1746226484555,3.696,1836.2,1836.1,3.64351]
[1746226484758,4.78471,1836.2,1836.1,3.64351]
[1746226486157,3.696,1836.2,1836.1,6.85131]
[1746226487161,3.61043988,1836.4,1836.3,1.08865]
[1746226487673,3.61043988,1836.4,1836.3,2.69995]
[1746226488064,1.08857,1836.5,1836.4,1.08859]
[1746226488263,1.08857,1836.5,1836.4,4.36289]
[1746226489167,4.78457,1836.5,1836.4,4.36289]
[1746226490169,1.08859,1836.4,1836.3,1.08861]
[1746226490370,1.08865,1836.3,1836.2,1.5973]
[1746226490865,2.74895,1836.3,1836.2,1.5973]
[1746226491070,2.74895,1836.3,1836.2,2.68601]
[1746226491267,6.44495,1836.3,1836.2,2.68601]
[1746226495674,6.44495,1836.3,1836.2,1.5973]
[1746226500178,1.08877,1836.1,1836.0,1.7225]
[1746226500365,1.08877,1836.1,1836.0,1.6909]
[1746226500568,1.08889,1835.9,1835.8,1.08893]
[1746226500772,1.08889,1835.9,1835.8,2.74733]
[1746226501077,4.78489,1835.9,1835.8,2.74733]
[1746226504379,3.696,1835.9,1835.8,2.74733]
[1746226504782,4.78489,1835.9,1835.8,2.74733]
[1746226505980,4.78489,1835.9,1835.8,1.6584]
[1746226506282,1.08907,1835.6,1835.5,4.29693]
[1746226506478,1.08907,1835.6,1835.5,6.04003]
[1746226507480,1.08907,1835.6,1835.5,2.83223]
[1746226512789,1.89797,1835.6,1835.5,2.83223]
[1746226514690,1.08907,1835.6,1835.5,2.83223]
[1746226525097,1.08907,1835.6,1835.5,1.7431]
[1746226527104,4.78507,1835.6,1835.5,1.7431]
[1746226527404,6.53587,1835.6,1835.5,1.7431]
[1746226527803,13.16954,1835.6,1835.1,4.29713]
[1746226528008,1.08924,1835.3,1835.2,2.7432]
[1746226530112,1.08924,1835.3,1835.2,1.6539]
[1746226530307,2.77514,1835.3,1835.2,1.6539]
[1746226530810,1.08924,1835.3,1835.2,1.6539]
[1746226531411,1.08924,1835.3,1835.2,2.7432]
[1746226531909,1.08924,1835.3,1835.2,1.6539]
[1746226532317,1.08924,1835.3,1835.2,2.7432]
[1746226538515,1.08924,1835.3,1835.2,1.6539]
[1746226538814,1.08924,1835.3,1835.2,2.7432]
[1746226549224,1.08924,1835.3,1835.2,1.6539]
[1746226551317,1.08924,1835.3,1835.2,2.7432]
[1746226553026,1.08924,1835.3,1835.2,1.6539]
[1746226554824,1.08924,1835.3,1835.2,2.7432]
[1746226555024,1.08924,1835.3,1835.2,1.6539]
[1746226555425,2.73064,1835.3,1835.2,1.6539]
[1746226555619,1.08924,1835.3,1835.2,1.6539]
[1746226561830,2.83154,1835.3,1835.2,1.6539]
[1746226562337,4.78524,1835.3,1835.2,1.6539]
[1746226563136,1.08924,1835.3,1835.2,1.6539]
[1746226564540,1.08924,1835.3,1835.2,2.7432]
[1746226565735,1.08924,1835.3,1835.2,1.6539]
[1746226569332,1.08924,1835.3,1835.2,2.7432]
[1746226569630,1.08924,1835.3,1835.2,1.6539]
[1746226574848,5.40117232,1835.3,1835.2,1.6539]
[1746226577347,7.00947232,1835.3,1835.2,1.6539]
[1746226580148,10.70547232,1835.3,1835.2,1.6539]
[1746226581149,7.00947232,1835.3,1835.2,1.6539]
[1746226581847,8.81810633,1835.3,1835.2,1.6539]
[1746226584249,10.90580633,1835.3,1835.2,1.6539]
[1746226585145,7.20980633,1835.3,1835.2,1.6539]
[1746226604058,6.12056633,1835.3,1835.2,7.7432]
[1746226604965,7.20980633,1835.3,1835.2,7.7432]
[1746226605166,7.20980633,1835.3,1835.2,2.7432]
[1746226606361,7.20980633,1835.3,1835.2,1.6539]
[1746226607766,7.20980633,1835.3,1835.2,2.7432]
[1746226608164,4.72227785,1835.3,1835.2,2.7432]
[1746226614562,4.72227785,1835.3,1835.2,1.6539]
[1746226615075,4.72227785,1835.3,1835.2,2.7432]
[1746226615574,4.72227785,1835.3,1835.2,1.6539]
[1746226615776,4.72227785,1835.3,1835.2,2.7432]
[1746226616775,5.41694661,1835.3,1835.2,2.7432]
[1746226617881,4.32770661,1835.3,1835.2,2.7432]
[1746226618070,5.42590203,1835.4,1835.3,1.08924]
[1746226618270,5.42590203,1835.4,1835.3,7.75404]
[1746226618465,5.42590203,1835.4,1835.3,12.75404]
[1746226619176,5.42590203,1835.4,1835.3,16.45004]
[1746226620377,6.51509203,1835.4,1835.3,7.75404]
[1746226620573,6.51509203,1835.4,1835.3,3.2078]
[1746226620878,1.0893,1835.3,1835.2,4.5463]
[1746226621367,1.0893,1835.3,1835.2,7.0436]
[1746226621567,1.0893,1835.3,1835.2,5.9543]
[1746226621772,1.0893,1835.3,1835.2,7.0436]
[1746226621967,2.7827,1835.3,1835.2,5.9543]
[1746226622172,2.7827,1835.3,1835.2,13.2107826]
[1746226622373,2.7827,1835.3,1835.2,14.3000826]
[1746226622978,1.91274,1835.4,1835.3,1.08924]
[1746226623180,1.91274,1835.4,1835.3,2.77024]
[1746226623379,1.91274,1835.4,1835.3,1.681]
[1746226623677,3.53714,1835.4,1835.3,2.77024]
[1746226625878,2.4479,1835.4,1835.3,2.77024]
[1746226627675,3.53709,1835.4,1835.3,2.77024]
[1746226629583,3.53709,1835.4,1835.3,1.681]
[1746226638593,3.53709,1835.4,1835.3,2.77024]
[1746226638796,3.53709,1835.4,1835.3,1.681]
[1746226638992,3.53709,1835.4,1835.3,2.77024]
[1746226639194,3.53709,1835.4,1835.3,1.681]
[1746226639385,3.53709,1835.4,1835.3,2.77024]
[1746226640081,1.08919,1835.4,1835.3,2.77024]
[1746226640481,6.51501203,1835.6,1835.5,1.08913]
[1746226640686,5.42590203,1835.6,1835.5,1.08913]
[1746226641082,5.42590203,1835.6,1835.5,3.48353]
[1746226641490,6.51497203,1835.6,1835.5,3.48353]
[1746226644488,1.08907,1835.6,1835.5,3.48353]
[1746226646488,1.08906,1835.7,1835.6,1.08901]
[1746226646690,5.93005,1835.9,1835.7,1.08895]
[1746226646691,1.08898,1835.8,1835.7,1.08895]
[1746226646997,1.08898,1835.8,1835.7,3.49795]
[1746226648088,4.78498,1835.8,1835.7,3.49795]
[1746226650589,3.696,1835.8,1835.7,3.49795]
[1746226650902,4.78495,1835.8,1835.7,3.49795]
[1746226651199,1.08895,1835.8,1835.7,3.49795]
[1746226652097,4.78495,1835.8,1835.7,3.49795]
[1746226656196,1.08895,1835.8,1835.7,3.49795]
[1746226657303,2.76343,1835.9,1835.8,1.08895]
[1746226657601,2.76343,1835.9,1835.8,3.60785]
[1746226658103,6.45943,1835.9,1835.8,3.60785]
[1746226658902,6.45943,1835.9,1835.8,2.5189]
[1746226659204,6.45943,1835.9,1835.8,3.60785]
[1746226661910,6.45943,1835.9,1835.8,2.5189]
[1746226664906,6.45943,1835.9,1835.8,3.60785]
[1746226665406,6.45943,1835.9,1835.8,2.5189]
[1746226667602,6.45943,1835.9,1835.8,1.6878]
[1746226667908,1.08901,1835.7,1835.6,4.0747]
[1746226668206,4.78501,1835.7,1835.6,3.2078]
[1746226668405,8.19831,1835.7,1835.6,3.2078]
[1746226673311,8.19831,1835.7,1835.6,4.9494]
[1746226675411,8.19831,1835.7,1835.6,1.7416]
[1746226675806,8.19831,1835.7,1835.6,2.83067]
[1746226676410,8.19831,1835.7,1835.6,1.7416]
[1746226677814,8.19831,1835.7,1835.6,2.83067]
[1746226678016,8.19831,1835.7,1835.6,1.7416]
[1746226680219,1.08907,1835.6,1835.5,4.54508]
[1746226680414,2.75747,1835.6,1835.5,4.54508]
[1746226680816,2.75747,1835.6,1835.5,6.17168]
[1746226681118,6.45347,1835.6,1835.5,6.17168]
[1746226681319,1.08913,1835.5,1835.4,1.95604]
[1746226681617,2.82103,1835.5,1835.4,0.8669]
[1746226682119,2.82103,1835.5,1835.4,2.4935]
[1746226682519,2.82103,1835.5,1835.4,3.58269]
[1746226682726,1.7319,1835.5,1835.4,3.58269]
[1746226683018,1.7319,1835.5,1835.4,3.58265]
[1746226683019,1.08913,1835.5,1835.4,3.58265]
[1746226689421,1.08909,1835.6,1835.5,1.08913]
[1746226689622,1.08909,1835.6,1835.5,2.69363]
[1746226689823,2.76517,1835.7,1835.6,1.08907]
[1746226690117,3.696,1835.7,1835.6,3.68917]
[1746226690318,3.696,1835.7,1835.6,4.54867]
[1746226691119,6.51487203,1835.8,1835.7,1.08901]
[1746226691320,6.51487203,1835.8,1835.7,2.82541]
[1746226692619,1.08897,1835.8,1835.7,1.7364]
[1746226692825,2.79657,1835.8,1835.7,1.7364]
[1746226694229,6.49257,1835.8,1835.7,1.7364]
[1746226695124,6.49257,1835.8,1835.7,2.82541]
[1746226695625,6.49257,1835.8,1835.7,1.7364]
[1746226695930,9.70037,1835.8,1835.7,1.7364]
[1746226696527,9.70037,1835.8,1835.7,2.82541]
[1746226697230,2.79657,1835.8,1835.7,2.82541]
[1746226698227,6.49257,1835.8,1835.7,2.82541]
[1746226702629,6.49257,1835.8,1835.7,1.7364]
[1746226703828,6.49257,1835.8,1835.7,2.82541]
[1746226704826,6.49257,1835.8,1835.7,1.7364]
[1746226705234,6.49257,1835.8,1835.6,2.81222]
[1746226705235,1.08901,1835.7,1835.6,2.81222]
[1746226705432,3.54801,1835.7,1835.6,2.4823]
[1746226705631,3.54801,1835.7,1835.6,3.57137]
[1746226706231,7.24401,1835.7,1835.6,3.57137]
[1746226713435,7.24401,1835.7,1835.6,2.4823]
[1746226714829,7.24401,1835.7,1835.6,3.57137]
[1746226719944,7.93850588,1835.7,1835.6,3.57137]
[1746226720752,7.93850588,1835.7,1835.6,2.4823]
[1746226721853,7.93850588,1835.7,1835.6,3.57137]
[1746226722949,13.36440791,1835.7,1835.6,3.57137]
[1746226723451,13.36440791,1835.7,1835.6,2.4823]
[1746226724946,13.36440791,1835.7,1835.6,3.57137]
[1746226725839,13.36440791,1835.7,1835.6,2.4823]
[1746226726044,13.36440791,1835.7,1835.6,3.57137]
[1746226726240,13.36440791,1835.7,1835.6,2.4823]
[1746226727249,9.66840791,1835.7,1835.6,2.4823]
[1746226728839,9.66840791,1835.7,1835.6,3.57137]
[1746226733655,9.66840791,1835.7,1835.6,2.4823]
[1746226733854,9.66840791,1835.7,1835.6,3.57137]
[1746226734354,9.66840791,1835.7,1835.6,2.4823]
[1746226734756,9.66840791,1835.7,1835.6,3.57137]
[1746226738158,8.02270791,1835.7,1835.6,3.57137]
[1746226738360,8.02270791,1835.7,1835.6,4.41137]
[1746226739158,11.71870791,1835.7,1835.6,4.41137]
[1746226741858,11.71870791,1835.7,1835.6,3.3223]
[1746226742359,13.41420791,1835.7,1835.6,4.41137]
[1746226742661,13.41420791,1835.7,1835.6,3.3223]
[1746226743859,13.41420791,1835.7,1835.6,4.41137]
[1746226746963,10.90540791,1835.7,1835.6,4.41137]
[1746226747262,6.12039791,1835.7,1835.6,4.41137]
[1746226751766,6.12039791,1835.7,1835.6,7.86437]
[1746226752060,7.9399116,1835.9,1835.8,1.08895]
[1746226753054,7.9399116,1835.9,1835.8,1.91075]
[1746226754364,7.9399116,1835.9,1835.8,3.58075]
[1746226756265,11.6359116,1835.9,1835.8,3.58075]
[1746226759968,7.99274,1835.9,1835.8,3.58075]
[1746226760369,9.60014,1835.9,1835.8,3.58075]
[1746226761265,8.5112,1835.9,1835.8,3.58075]
[1746226761462,3.696,1835.9,1835.8,6.78855]
[1746226762166,4.7320116,1836.0,1835.9,1.08889]
[1746226762469,4.7320116,1836.0,1835.9,3.52469]
[1746226763171,8.4280116,1836.0,1835.9,3.52469]
[1746226763368,10.1094116,1836.0,1835.9,3.52469]
[1746226765171,6.46624,1836.0,1835.9,3.52469]
[1746226766471,6.46624,1836.0,1835.9,2.73419]
[1746226766667,6.46624,1836.0,1835.9,1.08889]
[1746226766877,1.08893,1835.9,1835.8,1.08891]
[1746226767173,7.37893,1835.9,1835.8,1.08891]
[1746226769274,6.29,1835.9,1835.5,0.8258]
[1746226769478,1.08911,1835.6,1835.5,1.08911]
[1746226770275,4.78511,1835.6,1835.5,1.08911]
[1746226770476,6.39731,1835.6,1835.5,1.08911]
[1746226771577,6.39731,1835.6,1835.4,10.30735]
[1746226771578,1.08913,1835.5,1835.4,10.30735]
[1746226773275,1.92253,1835.5,1835.4,10.30735]
[1746226773477,1.92253,1835.5,1835.4,6.85435]
[1746226773975,1.92253,1835.5,1835.4,3.64655]
[1746226779379,3.50853,1835.5,1835.4,3.64655]
[1746226790485,2.4194,1835.5,1835.4,3.64655]
[1746226790785,1.08912,1835.6,1835.5,1.08913]
[1746226790978,1.08912,1835.6,1835.5,2.76633]
[1746226791178,4.78512,1835.6,1835.5,2.76633]
[1746226791585,3.696,1835.6,1835.5,2.76633]
[1746226792286,1.08902,1835.7,1835.6,1.08907]
[1746226792478,1.08902,1835.7,1835.6,4.43647]
[1746226793186,4.78502,1835.7,1835.6,4.43647]
[1746226793875,3.696,1835.7,1835.6,4.43647]
[1746226794686,4.78501,1835.7,1835.6,4.43647]
[1746226795990,3.696,1835.7,1835.6,7.64427]
[1746226796188,4.7321316,1835.8,1835.7,1.08901]
[1746226796486,4.7321316,1835.8,1835.7,2.76431]
[1746226797192,8.4281316,1835.8,1835.7,2.76431]
[1746226797990,4.78496,1835.8,1835.7,2.76431]
[1746226800091,1.08896,1835.8,1835.7,2.76431]
[1746226800791,2.69346,1835.8,1835.7,2.76431]
[1746226801186,6.38946,1835.8,1835.7,2.76431]
[1746226801383,1.08901,1835.7,1835.6,1.93823]
[1746226801587,5.14847,1835.7,1835.4,13.0330826]
[1746226801882,1.08913,1835.5,1835.4,13.2664326]
[1746226802287,1.08913,1835.5,1835.4,6.00995]
[1746226802488,2.69363,1835.5,1835.4,6.00995]
[1746226803785,3.49203,1835.5,1835.4,4.29695]
[1746226805199,3.49203,1835.5,1835.3,9.7215826]
[1746226805398,1.68,1835.4,1835.3,10.8108226]
[1746226805898,1.68,1835.4,1835.3,3.55434]
[1746226807098,1.88753,1835.5,1835.4,1.08919]
[1746226807099,0.7984,1835.5,1835.4,1.08919]
[1746226807299,3.50083,1835.5,1835.4,2.67209]
[1746226807500,2.70243,1835.5,1835.4,2.67209]
[1746226808295,1.08919,1835.4,1835.3,1.915]
[1746226808493,3.49979,1835.4,1835.3,1.915]
[1746226809397,1.6133,1835.4,1835.3,1.915]
[1746226809697,1.6133,1835.4,1835.3,3.5081]
[1746226809999,2.70249,1835.4,1835.3,3.5081]
[1746226810999,2.70249,1835.4,1835.3,2.4189]
[1746226811205,1.08924,1835.3,1835.2,4.29706]
[1746226811395,3.56324,1835.3,1835.2,4.29706]
[1746226812093,3.56324,1835.3,1835.2,6.01046]
[1746226812900,3.56324,1835.3,1835.2,3.2078]
[1746226813094,1.08936,1835.1,1835.0,13.2671026]
[1746226813295,3.64005,1835.2,1835.1,1.08936]
[1746226813704,4.5472,1835.3,1835.2,1.0893]
[1746226813903,4.78524,1835.3,1835.2,1.0893]
[1746226814100,1.08924,1835.3,1835.2,1.0893]
[1746226814302,1.08924,1835.3,1835.2,2.8027]
[1746226817101,2.81713,1835.4,1835.2,2.8027]
[1746226817307,2.81713,1835.4,1835.3,1.08924]
[1746226817510,2.81713,1835.4,1835.3,3.56904]
[1746226817709,1.7279,1835.4,1835.3,3.56904]
[1746226817909,2.81709,1835.4,1835.3,3.56904]
[1746226820012,1.08919,1835.4,1835.3,3.56904]
[1746226820913,3.6431716,1835.5,1835.4,1.08919]
[1746226821099,3.6431716,1835.5,1835.4,6.51029]
[1746226821306,8.7561516,1835.6,1835.5,1.08913]
[1746226821516,8.7561516,1835.6,1835.5,3.66663]
[1746226821710,10.4230516,1835.6,1835.5,3.66663]
[1746226822116,14.1190516,1835.6,1835.5,3.66663]
[1746226823515,14.1190516,1835.6,1835.5,2.5775]
[1746226823717,14.9508516,1835.6,1835.5,1.7251]
[1746226824114,11.30768,1835.6,1835.5,1.7251]
[1746226824311,8.09988,1835.6,1835.5,1.7251]
[1746226825718,8.09988,1835.6,1835.5,2.81423]
[1746226826620,8.09988,1835.6,1835.5,3.62763]
[1746226832425,8.09988,1835.6,1835.5,2.5385]
[1746226834831,8.09988,1835.6,1835.5,3.62763]
[1746226835331,8.09988,1835.6,1835.5,2.5385]
[1746226835829,1.08919,1835.4,1835.3,1.0892]
[1746226836030,1.08919,1835.4,1835.3,2.7999]
[1746226837229,1.08919,1835.4,1835.3,6.4959]
[1746226838133,1.08919,1835.4,1835.3,2.7999]
[1746226847542,2.83627,1835.5,1835.4,1.08919]
[1746226848342,6.4794416,1835.5,1835.4,1.08919]
[1746226850743,6.4794416,1835.5,1835.4,2.79719]
[1746226850942,6.4794416,1835.5,1835.4,3.66919]
[1746226853337,5.3902716,1835.5,1835.4,3.66919]
[1746226854547,6.4794016,1835.5,1835.4,3.66919]
[1746226856045,8.95674215,1835.5,1835.4,3.66919]
[1746226858244,1.08924,1835.4,1835.3,1.08919]
[1746226858445,3.51584,1835.4,1835.3,1.08919]
[1746226859144,1.08924,1835.3,1835.2,3.61396]
[1746226859343,3.53684,1835.3,1835.2,3.61396]
[1746226860143,3.53684,1835.3,1835.2,4.78526]
[1746226860847,3.53684,1835.3,1835.2,6.44466]
[1746226863052,3.53684,1835.3,1835.2,4.78526]
[1746226863352,1.08936,1835.2,1835.1,1.08934]
[1746226863543,3.65846,1835.2,1835.1,1.08934]
[1746226864248,3.65846,1835.2,1835.1,2.69054]
[1746226869053,3.65846,1835.2,1835.1,1.6012]
[1746226869354,3.65846,1835.2,1835.1,2.69056]
[1746226873854,2.80076,1835.2,1835.1,2.69056]
[1746226877863,1.08936,1835.1,1835.0,1.90886]
[1746226878050,2.78846,1835.1,1835.0,3.53156]
[1746226878253,2.78846,1835.1,1835.0,7.22756]
[1746226879160,2.78846,1835.1,1835.0,3.53156]